Cogmind - Beta 16 @@@ ROGUE MODE // 2025.10.24 @ 01:24:37 Player: Demo Result: Destroyed by H-66 Slayer with Heavy Assault Rifle Performance ------------- Evolutions (4) 2000 Regions Visited (5) 1000 Robots Destroyed (107) 535 Value Destroyed (2922) 2922 Prototype IDs (16) 320 Alien Tech Used (0) 0 Bonus (1246) 1246 TOTAL SCORE: 8023 Bonus ------- High Alert Combat Kills 348 Follower Combat Kills 98 Registered with UFD 300 Met Optimus in HQ 500 Cogmind --------- Core Integrity 0/850 Matter 66/300 Energy 99/100 System Corruption 14% Temperature Cool (0) Movement Core (50) Location -6/Factory Parts ------- > --- POWER (2) -------- (None) > --- PROPULSION (2) --- (None) > --- UTILITY (6) ------ (None) > --- WEAPON (5) ------- (None) > --- INVENTORY (5) ---- Cargo Storage Unit Peak State ------------ > --- POWER ------------ Light Ion Engine Micro Nuclear Core > --- PROPULSION ------- Armored Huge Wheel > --- UTILITY ---------- Improved Heat Sink Improved Heat Sink Cargo Storage Unit Improved Medium Armor Plating High-powered Tractor Beam > --- WEAPON ----------- Heavy Laser Gauss Rifle Improved Grenade Launcher Improved Grenade Launcher Axe > --- INVENTORY -------- Light Ion Engine Light Ion Engine Light Ion Engine Wheel Wheel Wheel Wheel Wheel Flightbrick Power Amplifier Cargo Storage Unit Matter Compressor Matter Compressor Structural Scanner Advanced Signal Interpreter Improved Trap Extractor Subdweller Shrapnel Launcher Plasma Cutter CPS Tube CPS Tube CPS Tube CPS Tube CPS Tube Piercing Trap [Rating: 54] Favorites ----------- Power Light Ion Engine Engine Light Ion Engine Power Core Micro Nuclear Core Propulsion Wheel Treads Light Treads Wheel Wheel Utility Cargo Storage Unit Device Improved Heat Sink Storage Cargo Storage Unit Protection Hardened Heavy Armor Plating Weapon Subdweller Shrapnel Launcher Energy Gun Riot Gun Ballistic Gun Subdweller Machine Gun Ballistic Cannon Assault Cannon Launcher Subdweller Shrapnel Launcher Special Weapon Junk Cannon Slashing Weapon Axe Build | -11 -10 -10 -10 -9 -6 ------- Run | Yrd Mat Min Sub Scr Fac Slots Evolved 8 | . . . . . 8 Power 1 | . . . . . 1 Propulsion . | . . . . . . Utility 4 | . . . . . 4 Weapon 3 | . . . . . 3 Parts Attached 56 | 2 . 7 9 1 37 Power 9 | . . 1 . . 8 Engine 8 | . . 1 . . 7 Core 1 | . . . . . 1 Reactor . | . . . . . . Propulsion 14 | 2 . 2 5 . 5 Treads 2 | 2 . . . . . Leg . | . . . . . . Wheel 12 | . . 2 5 . 5 Hover . | . . . . . . Flight . | . . . . . . Utility 15 | . . 2 . . 13 Device 8 | . . . . . 8 Storage 2 | . . 1 . . 1 Processor . | . . . . . . Hackware . | . . . . . . Protection 5 | . . 1 . . 4 Artifact . | . . . . . . Weapon 18 | . . 2 4 1 11 Energy Gun 5 | . . 1 1 . 3 Energy Cannon . | . . . . . . Ballistic Gun 3 | . . . 1 . 2 Ballistic Cannon 2 | . . . 1 . 1 Launcher 6 | . . . 1 . 5 Special Weapon 1 | . . . . 1 . Impact Weapon . | . . . . . . Slashing Weapon 1 | . . 1 . . . Piercing Weapon . | . . . . . . Special Melee Weapon . | . . . . . . Unidentified Prototypes 2 | . . . . 1 1 Corrupted Parts 1 | . . . . . 1 System Corruption 1 | . . . . . 1 Parts Lost 35 | . . . 5 . 30 Power 7 | . . . . . 7 Propulsion 8 | . . . 4 . 4 Utility 7 | . . . . . 7 Weapon 13 | . . . 1 . 12 Highest Loss Streak 10 | . . . 1 . 10 To Critical Strikes 1 | . . . . . 1 Average Backups 22 | 2 5 12 24 23 23 Power 1 | . 1 . 1 . 1 Propulsion 2 | . . 1 2 2 3 Utility 8 | . 1 5 8 8 8 Weapon 8 | 1 3 4 11 9 4 Tool/Special . | . . . . . . Unused Backups 61 | . 1 9 7 12 32 Power 4 | . . 1 . 1 2 Propulsion 10 | . . . . 3 7 Utility 26 | . . 5 3 4 14 Weapon 14 | . 1 2 4 4 3 Tool/Special 7 | . . 1 . . 6 Average Slot Usage (%) 77 | . 28 65 84 74 79 Engine 11 | . . 2 14 14 7 Treads 1 | . 28 14 . . . Wheel 22 | . . 13 27 28 11 Device 3 | . . . . . 12 Storage 11 | . . 12 14 14 5 Protection 2 | . . . . . 8 Energy Gun 8 | . . 7 3 10 11 Ballistic Gun 3 | . . . 10 . 1 Ballistic Cannon 5 | . . . 5 7 3 Launcher 4 | . . . 7 . 9 Slashing Weapon 1 | . . 12 . . 1 Peak Build Rating 54 | 2 2 15 20 26 54 Average Rating 22 | 1 2 10 14 17 42 On Entrance 9 | . 2 2 14 20 20 Avg Prop Armor Cover (%) 34 | 40 41 30 . . . Naked Turns 3 | . . . . . 3 Heaviest Build 205 | . . 149 155 157 205 Greatest Support 40 | 3 3 40 26 26 28 Greatest Overweight (x) 19 | . . 14 7 6 19 Average Overweight (x) 5 | . . 5 5 5 7 Largest Inventory Capacity 30 | 5 5 30 30 30 30 Average Capacity 29 | 5 5 28 30 30 29 Most Carried 30 | 5 5 26 30 30 30 Average Carried 26 | 2 4 12 27 28 28 Final Capacity 30 | 5 5 30 30 30 5 Final Carried 30 | 5 5 18 30 30 2 Class Distribution -------------------- 76% | Hauler-Mutant 7% | Scavenger-Tank 7% | Scavenger-Bomber 6% | Hauler-Tank Dominant Class ---------------- Mutant | -10/Materials Hauler-Mutant | -10/Mines Hauler-Mutant | -10/Subcaves Hauler-Mutant | -9/Scraptown Scavenger-Tank | -6/Factory Resources | -11 -10 -10 -10 -9 -6 ----------- Run | Yrd Mat Min Sub Scr Fac Matter Collected 3800 | 220 . 70 716 382 2412 Remotely 1369 | . . . . . 1369 Salvage Created 3231 | . . 369 377 . 2485 Parts 215 | . . 31 21 . 163 Haulers Intercepted 2 | . . . . . 2 Recyclers Shooed 9 | . . 1 . . 8 Parts Field Recycled . | . . . . . . Retrieved Matter . | . . . . . . Parts Self-Destructed 9 | . . . 9 . . Prevented . | . . . . . . Parts Restored . | . . . . . . Kills | -11 -10 -10 -10 -9 -6 ------- Run | Yrd Mat Min Sub Scr Fac Combat Hostiles Destroyed 47 | . . 1 16 . 30 Melee 1 | . . . . . 1 Guns 5 | . . 1 2 . 2 Cannons 5 | . . . 2 . 3 AOE 35 | . . . 12 . 23 Classes Destroyed 15 | . . 5 2 . 8 Worker 18 | . . 3 . . 15 Builder 28 | . . 2 . . 26 Tunneler 6 | . . 3 . . 3 Hauler 2 | . . . . . 2 Recycler 10 | . . 2 . . 8 Watcher 2 | . . . . . 2 Swarmer 3 | . . 1 . . 2 Grunt 15 | . . . . . 15 Brawler 1 | . . . . . 1 Duelist 1 | . . . . . 1 Sentry 2 | . . . . . 2 Hunter 5 | . . . . . 5 Programmer 4 | . . . . . 4 Artisan 1 | . . . 1 . . Subdweller 16 | . . . 16 . . Best Kill Streak 14 | . . 6 2 . 14 Combat Bots Only 5 | . . 1 2 . 5 Max Kills in Single Turn 4 | . . 1 1 . 4 Gunslinging . | . . . . . . Exploded 3 | . . . 1 . 3 Melee 1 | . . . . . 1 Uniques/NPCs Destroyed . | . . . . . . Combat | -11 -10 -10 -10 -9 -6 -------- Run | Yrd Mat Min Sub Scr Fac Hostile Shots Fired 339 | . 2 3 40 . 294 Missed 106 | . 2 1 18 . 85 Hits 233 | . . 2 22 . 209 Melee 3 | . . . . . 3 Projectile 230 | . . 2 22 . 206 AOE 1 | . . . 1 . . Critical Strikes 4 | . . . 1 . 3 Damage Taken 4542 | . . 14 609 . 3919 Core 937 | . . 8 77 . 852 Absorbed by Shields . | . . . . . . Redirected to Shielding 102 | . . . . . 102 Core Remaining (%) 83 | 100 . . . 66 . Volleys Fired 249 | . . 29 74 . 146 Largest 4 | . . 1 2 . 4 Hottest 201 | . . 63 93 . 201 Shots Fired 389 | . . 29 109 . 251 Gun 229 | . . 29 46 . 154 Cannon 60 | . . . 35 . 25 Launcher 100 | . . . 28 . 72 Special . | . . . . . . Kinetic 196 | . . . 102 . 94 Thermal 136 | . . 29 4 . 103 Explosive 21 | . . . . . 21 Electromagnetic 36 | . . . 3 . 33 Robot Hit Streak 17 | . . 7 17 . 13 Robot Miss Streak 10 | . . 2 3 . 10 Penetration Max . | . . . . . . Secondary Targets 1 | . . . . . 1 Max Gunslinging Chain 1 | . . . . . 1 Shots Hit Robots 242 | . . 26 61 . 155 Core Hits 214 | . . 11 28 . 175 Critical Kills . | . . . . . . Critical Parts Destroyed . | . . . . . . Critical Strikes 8 | . . . 1 . 7 Burn 7 | . . . . . 7 Blast 1 | . . . 1 . . Melee Attacks 19 | . . 6 . . 13 Impact . | . . . . . . Slashing 19 | . . 6 . . 13 Piercing . | . . . . . . Sneak Attacks 12 | . . 4 . . 8 Combat Hostiles . | . . . . . . Follow-up Attacks . | . . . . . . Damage Inflicted 11560 | . . 685 2476 . 8399 Guns 2480 | . . 354 557 . 1569 Cannons 734 | . . . 331 . 403 Explosions 7438 | . . . 1588 . 5850 Melee 908 | . . 331 . . 577 Ramming . | . . . . . . Kinetic 6892 | . . . 2435 . 4457 Thermal 1885 | . . 354 . . 1531 Explosive 1477 | . . . . . 1477 Electromagnetic 398 | . . . 41 . 357 Impact . | . . . . . . Slashing 908 | . . 331 . . 577 Piercing . | . . . . . . Highest Corruption 14 | . . . . . 14 Average Corruption 8 | . . . . . 8 Corruption Purged . | . . . . . . Corruption Blocked . | . . . . . . Effects 56 | . . . . . 56 Message Errors 11 | . . . . . 11 Matter Fused 11 | . . . . . 11 Heat Flow Errors 4 | . . . . . 4 Energy Discharges 3 | . . . . . 3 Parts Rejected 3 | . . . . . 3 Parts Fused 2 | . . . . . 2 Data Loss (minor) 6 | . . . . . 6 Data Loss (major) 4 | . . . . . 4 Misfires 5 | . . . . . 5 Alerts 2 | . . . . . 2 Misdirections 1 | . . . . . 1 Weapon Failures 4 | . . . . . 4 Overload Shots . | . . . . . . Overflow Damage 410 | . . 77 19 . 314 Projectiles . | . . . . . . Explosions 281 | . . . 19 . 262 Melee 129 | . . 77 . . 52 Knockbacks 12 | . . . 3 . 9 Impact . | . . . . . . Kinetic 12 | . . . 3 . 9 Secondary . | . . . . . . Self-Inflicted Damage 570 | . . . 52 . 518 Shots 20 | . . . 3 . 17 Rammed . | . . . . . . Targets Rammed . | . . . . . . Kicked . | . . . . . . Crushed . | . . . . . . Highest Temperature 384 | . . 223 . . 384 Average Temperature 100 | . . 96 . . 100 Received Heat Transfer 663 | . . . 93 . 570 Effects 6 | . . . . . 6 Shutdowns 1 | . . . . . 1 Interference 4 | . . . . . 4 Matter Decay 1 | . . . . . 1 Siege Activations . | . . . . . . Martial Activations . | . . . . . . Shielding Activations . | . . . . . . Robots Disrupted . | . . . . . . Combat Hostiles . | . . . . . . Robots Corrupted . | . . . . . . Combat Hostiles . | . . . . . . Parts Fried 2 | . . . . . 2 Impact Corruptions . | . . . . . . Robots Melted 1 | . . . . . 1 Combat Hostiles 1 | . . . . . 1 Parts Melted 5 | . . 1 . . 4 Heat Transferred 3804 | . . 777 . . 3027 Parts Sabotaged . | . . . . . . Parts Stolen . | . . . . . . Parts Stripped . | . . . . . . Power Chain Reactions 5 | . . . . . 5 Alert | -11 -10 -10 -10 -9 -6 ------- Run | Yrd Mat Min Sub Scr Fac Maximum Alert Level 3 | . . . . . 3 Low Security (%) 55 | 100 100 100 . . 39 Level 1 8 | . . . . . 11 Level 2 18 | . . . . . 25 Level 3 17 | . . . . . 23 Level 4 . | . . . . . . Level 5 . | . . . . . . High Security . | . . . . . . Max Security . | . . . . . . Peak Influence 1024 | . . 23 . . 1024 Initial . | . . . . . . Average 312 | . . 2 . . 419 Influence Increases 1975 | . . 75 . . 1900 Destroy 0b10 Robot/C 660 | . . 20 . . 640 Destroy 0b10 Robot/NC 335 | . . 55 . . 280 Destroy Leader 168 | . . . . . 168 Allied During Kill 5 | . . . . . 5 Select Force Hacks 100 | . . . . . 100 Disable Machine 345 | . . . . . 345 Destroy Structure 362 | . . . . . 362 Influence Decreases 987 | . . 75 . . 912 Time Decay 667 | . . 75 . . 592 Lost Part 300 | . . . . . 300 Lost Ally 20 | . . . . . 20 Squads Dispatched 23 | . . . . . 23 Investigation 6 | . . . . . 6 Extermination 4 | . . . . . 4 Reinforcement 13 | . . . . . 13 Assault . | . . . . . . Garrison . | . . . . . . Intercept . | . . . . . . Searches Triggered . | . . . . . . Construction Impeded 10 | . . . . . 10 Haulers Reinforced 1 | . . . . . 1 Active Scanning Responses . | . . . . . . Cargo Convoy Interrupts . | . . . . . . Stealth | -11 -10 -10 -10 -9 -6 --------- Run | Yrd Mat Min Sub Scr Fac Distress Signals 2 | . . . . . 2 Communications Jammed . | . . . . . . Distress Signals . | . . . . . . Times Spotted 61 | . 3 1 17 . 40 Peak Tracking Total 6 | . 3 1 2 . 6 Tactical Retreats . | . . . . . . Traps | -11 -10 -10 -10 -9 -6 ------- Run | Yrd Mat Min Sub Scr Fac Traps Triggered 2 | . . . . . 2 Indirectly . | . . . . . . Trap Hack Attempts . | . . . . . . Triggered . | . . . . . . Disarmed . | . . . . . . Reprogrammed . | . . . . . . Reused . | . . . . . . Traps Extracted . | . . . . . . Installed . | . . . . . . Triggered . | . . . . . . Most Traps Carried 1 | . . . 1 1 1 Machines | -11 -10 -10 -10 -9 -6 ---------- Run | Yrd Mat Min Sub Scr Fac Machines Disabled 24 | . . . 1 . 23 Max in Single Turn 4 | . . . 1 . 4 Machines Repaired . | . . . . . . Machines Dismantled . | . . . . . . Machines Sabotaged 2 | . . . . . 2 Overloaded Fab Kills . | . . . . . . Hacking | -11 -10 -10 -10 -9 -6 --------- Run | Yrd Mat Min Sub Scr Fac Machines Accessed 11 | . 1 1 1 2 6 Terminals 5 | . 1 . . . 4 Fabricators 1 | . . . . . 1 Repair Stations . | . . . . . . Recycling Units 1 | . . . . . 1 Scanalyzers . | . . . . . . Garrison Access . | . . . . . . Total Hacks 25 | . 1 1 1 7 15 Successful 14 | . . 1 1 7 5 Failed 11 | . 1 . . . 10 Catastrophic 1 | . . . . . 1 Database Lockouts . | . . . . . . Manual 13 | . 1 . . . 12 Terminals 9 | . 1 . . . 8 Fabricators 6 | . . . . . 6 Repair Stations . | . . . . . . Recycling Units 1 | . . . . . 1 Scanalyzers . | . . . . . . Garrison Access . | . . . . . . Terminal Hacks 9 | . . 1 1 7 . Record 4 | . . . . 4 . Robot Analysis 3 | . . . . 3 . Open Door 1 | . . 1 . . . Proto ID Catalog 1 | . . . 1 . . Fabricator Hacks 1 | . . . . . 1 Network Status 1 | . . . . . 1 Repair Station Hacks . | . . . . . . Recycling Unit Hacks . | . . . . . . Scanalyzer . | . . . . . . Garrison Access Hacks . | . . . . . . Unauthorized Hacks 4 | . . . . . 4 Terminals 3 | . . . . . 3 Sabotage 3 | . . . . . 3 Fabricators . | . . . . . . Repair Stations . | . . . . . . Recycling Units 1 | . . . . . 1 Fedlink 1 | . . . . . 1 Scanalyzers . | . . . . . . Garrison Access . | . . . . . . Data Cores Recovered . | . . . . . . Used . | . . . . . . Hacking Detections 4 | . . . . . 4 Full Trace Events 2 | . . . . . 2 Feedback Events . | . . . . . . Feedback Blocked . | . . . . . . Robot Schematics Acquired . | . . . . . . Robots Built . | . . . . . . Authchips . | . . . . . . Time . | . . . . . . Total Robot Build Rating . | . . . . . . Part Schematics Acquired . | . . . . . . Parts Built . | . . . . . . Authchips . | . . . . . . Time . | . . . . . . Total Part Build Rating . | . . . . . . Part Studies Acquired . | . . . . . . Parts Repaired . | . . . . . . Time . | . . . . . . Parts Recycled . | . . . . . . Recycled Matter . | . . . . . . Retrieved Matter . | . . . . . . Retrieved Components . | . . . . . . Parts Scanalyzed . | . . . . . . Part Schematics Acquired . | . . . . . . Parts Damaged . | . . . . . . Bothacking | -11 -10 -10 -10 -9 -6 ------------ Run | Yrd Mat Min Sub Scr Fac Used RIF Installer . | . . . . . . Robots Hacked . | . . . . . . Non-combat . | . . . . . . Combat . | . . . . . . Robot Hacks Applied . | . . . . . . Relay Couplers Released . | . . . . . . Fabnet Peak Effective % . | . . . . . . Robots Rewired . | . . . . . . Allies Hacked . | . . . . . . Hacks Repelled . | . . . . . . Allies | -11 -10 -10 -10 -9 -6 -------- Run | Yrd Mat Min Sub Scr Fac Total Allies 1 | . . . . 1 . Largest Group 1 | . . . . 1 1 Highest-Rated Group 47 | . . . . 47 47 Highest-Rated Ally 47 | . . . . 47 47 Total Orders . | . . . . . . Ally Attacks 8 | . . . . . 8 Total Damage 466 | . . . . . 466 Kills 2 | . . . . . 2 Allies Corrupted . | . . . . . . Allies Melted . | . . . . . . Intel | -11 -10 -10 -10 -9 -6 ------- Run | Yrd Mat Min Sub Scr Fac Active Infowar (turns) 362 | . . . . . 362 Structural 362 | . . . . . 362 Robot Analysis Total 3 | . . . . 3 . Derelict Logs Recovered 6 | . . . 1 5 . Drone Launches . | . . . . . . Drone Recoveries . | . . . . . . Exploration | -11 -10 -10 -10 -9 -6 ------------- Run | Yrd Mat Min Sub Scr Fac Turns Passed 8261 | 36 31 692 2360 2939 2203 Spaces Moved 4197 | 57 59 284 1210 1759 828 Core 209 | 57 59 86 . . 7 Treads 40 | . . 40 . . . Legs . | . . . . . . Wheels 3948 | . . 158 1210 1759 821 Hover . | . . . . . . Flight . | . . . . . . Fastest Speed 50 | 50 50 50 165 165 50 Average Speed 173 | 50 50 198 170 165 202 Slowest Speed 400 | 50 50 400 185 180 365 Overloaded Moves . | . . . . . . Propulsion Burnouts . | . . . . . . Robots Hopped . | . . . . . . Potential Cave-ins 3 | . . . . . 3 Cave-ins Triggered . | . . . . . . Exploration Rate (%) 38 | 3 20 31 62 88 27 Regions Visited 5 Branch Regions 3 Pre-discovered Areas 1 | . . . 1 . . Known Exits Taken . | . . . . . . Unknown Exits Taken 5 | 1 1 1 1 1 . Scrap Searched 10 | . . 1 4 5 . Spaces Dug 36 | . . . . . 36 Terrain Destroyed 723 | . . . 222 . 501 Melee 1 | . . . . . 1 Projectile 2 | . . . . . 2 AOE 720 | . . . 222 . 498 Terrain Rammed . | . . . . . . Walls Destroyed . | . . . . . . Machines Disabled . | . . . . . . Actions | -11 -10 -10 -10 -9 -6 --------- Run | Yrd Mat Min Sub Scr Fac Total 4811 | 63 60 378 1405 1806 1099 Wait 98 | . . 11 78 1 8 Move 4192 | 56 58 283 1209 1758 828 Hop . | . . . . . . Pick Up 110 | 5 1 28 23 23 30 Fast Attach 26 | 2 . 2 . 1 21 Attach 33 | . . 4 5 2 22 Detach 4 | . . . . . 4 Swap 9 | . . 1 5 . 3 Drop 71 | . 1 14 11 21 24 Fire 249 | . . 29 74 . 146 Melee 19 | . . 6 . . 13 Ram . | . . . . . . Kick . | . . . . . . Crush . | . . . . . . Escape Stasis . | . . . . . . Rewire . | . . . . . . Trap . | . . . . . . Miscellaneous . | . . . . . . Route ------- -11/Scrapyard -10/Materials -10/Mines -10/Subcaves (discovered 2 exits: [*Mat] / *Scr) -9/Scraptown (discovered 2 exits: *Fac x2) -6/Factory (discovered 1 exit: [*Fac]) History --------- Turn | Location | Event 6 | -11/Scrapyard | Discovered new exit (range 16) 37 | -11/Scrapyard | Entered Materials 64 | -10/Materials | Discovered new exit (range 9) 68 | -10/Materials | Entered Mines 83 | -10/Mines | Met a Derelict who couldn't figure out how to use a Trap Extractor 409 | -10/Mines | Build established: Hauler-Mutant 751 | -10/Mines | Discovered new exit (range 5) 760 | -10/Mines | Entered Subcaves 761 | -10/Subcaves | Approached by a straggling Scientist 877 | -10/Subcaves | Shifting Twisted Machinery released Sub. Machine Gun 880 | -10/Subcaves | Shifting Twisted Machinery released Riot Gun 1076 | -10/Subcaves | Learned location of 1 exit from Materials 1095 | -10/Subcaves | Scientist uncovered a shortcut to Scraptown 1133 | -10/Subcaves | Learned location of Zion (-6) 1133 | -10/Subcaves | Met a Zionite searching for "candidates" 1265 | -10/Subcaves | Disturbed a concealed Subdweller 1274 | -10/Subcaves | Disturbed a concealed Subdweller 1712 | -10/Subcaves | Discovered new exit (range 16) 2556 | -10/Subcaves | A swath of the cavern ceiling suddenly collapsed 2603 | -10/Subcaves | Disturbed a concealed Subdweller 2708 | -10/Subcaves | Shifting Twisted Machinery released Piercing Trap 2718 | -10/Subcaves | Shifting Twisted Machinery released Piercing Trap 2950 | -10/Subcaves | Visited 4L-MR0's lab 2976 | -10/Subcaves | Found Flightbrick 3120 | -10/Subcaves | Entered Scraptown 3512 | -9/Scraptown | Discovered new exit (range 11) 3621 | -9/Scraptown | Visited UFD Registry 3621 | -9/Scraptown | Registered with UFD as "Protohead" 3641 | -9/Scraptown | Visited Science Testing Area 3652 | -9/Scraptown | Visited Supply Room 3680 | -9/Scraptown | Visited SPCMW 3738 | -9/Scraptown | Visited Cave Peace 3753 | -9/Scraptown | Visited Comm Corps 4073 | -9/Scraptown | Scanned Subdweller tech in exchange for log data 4076 | -9/Scraptown | Learned Research emergency access door positions 4078 | -9/Scraptown | Learned Research terminal intel 4079 | -9/Scraptown | Learned Research interactive machine intel 4084 | -9/Scraptown | Learned Research security intel 4086 | -9/Scraptown | Learned location of 1 exit from Research 4200 | -9/Scraptown | Visited DA-N13 Charitable Foundation 4292 | -9/Scraptown | Delivered Scrap Shield to a Scientist 4558 | -9/Scraptown | Visited Botcube Research 4571 | -9/Scraptown | Found Botcube 4602 | -9/Scraptown | Visited Analyses Database 4653 | -9/Scraptown | Visited Chapter 10 4723 | -9/Scraptown | Visited Junk Cannon Lab 4737 | -9/Scraptown | Found Prototype Special Weapon 4737 | -9/Scraptown | Identified Junk Cannon 4812 | -9/Scraptown | Visited Abandonware Association 4832 | -9/Scraptown | Learned abandonware demo "REBOOT5.EXE" 4920 | -9/Scraptown | Visited Curators Association 5005 | -9/Scraptown | Found DCF Scrap (31 items) 5429 | -9/Scraptown | Botcube activated 5445 | -9/Scraptown | Botcube completed mutation into wheeled form, armed with 1 launcher. 5651 | -9/Scraptown | Visited Shadow of the Wyrm 5911 | -9/Scraptown | Met Optimus 5911 | -9/Scraptown | Accepted into 0bPrime 6050 | -9/Scraptown | Discovered new exit (range 3) 6059 | -9/Scraptown | Entered Factory 6059 | -6/Factory | Accompanied by 1 ally 6059 | -6/Factory | Evolved 8 slots: Power x1, Utility x4, Weapon x3 6540 | -6/Factory | Loaded intel: 8 recycling unit locations 6628 | -6/Factory | Build established: Scavenger-Tank 6999 | -6/Factory | Build established: Hauler-Tank 7282 | -6/Factory | Lost 4 parts (2n2w) 7492 | -6/Factory | Discovered new exit (range 13) 7532 | -6/Factory | System corruption reached 10% 7570 | -6/Factory | Lost 4 parts (1u3w) 8178 | -6/Factory | Build established: Scavenger-Bomber 8247 | -6/Factory | Core integrity fell below 50% 8259 | -6/Factory | Released all parts (5) 8260 | -6/Factory | Core integrity fell below 20% 8262 | -6/Factory | Destroyed by H-66 Slayer with Heavy Assault Rifle Last Messages --------------- 08255_ U-05 Engineer lays Concrete. 08258_ Slug penetrates Wall. 08258_ U-05 Engineer lays Concrete. 08258_ Slug penetrates Earth. 08259_ The unstable cave ceiling collapses. 08259_ Critical hit (Burn: +37). 08259_ Released Cargo Storage Unit. 08259_ Released Axe. 08259_ Released Imp. Heat Sink. 08259_ Released Coil Gun. 08259_ Released Imp. Grenade Launcher. [Achievement: Live, Flee, And Rebuild] 08259_ P-60 Hacker resets G-50 Soldier, system corruption cleaned. 08260_ U-05 Engineer lays Concrete. 08262_ Slug penetrates G-50 Soldier. 08262_ G-50 Soldier destroyed. 08262_ Penetrated by Slug. 08262_ U-05 Engineer lays Concrete. 08262_ Penetrated by Slug. Map ----- +----------------------------------------------------+ | ?????????# # ??? | | ?????????# # """ """ ???? | | ?????????# # "F" """ ???? | | ?????????# # " """ ????? | | ?????????# # "" """ ###+##### ????? | | ?????????# """ #?????????????? | | ?????????# = """ #?????????????? | | ?????????# """ #?????????????? | | ?????????# """ #?????????????? | | ?????????############" "" #?????????????? | | ?????????# h ??????????????? | | ?????????# T """ #?????????????? | | ?????????# * """ #?????????????? | | ?????????# """ #?????????????? | | ????????## """ ???????????????? | | ????????#" ???????????????? | | ???????##" ! ???????????????? | | ???????# " =**! g =% ???????????????? | | ???????# " !!*!= ;*"## ???????????????? | | ????????#" =||!&= #?? ?????????????????? | | ????????#" ==|!| #??? ??????????????????? | | ???????# " /||!] ##?????????????????????? | | ??????# #"" [ ##????????????????????? | | ????????# # #????????????????????? | | ??????????### #????????????????????? | | ????????????### # # @ ##????????????????????? | | ??????????????###### ! ????????????????? | | ???????????????????### ???????????? | | ?????????????????????### # """"""""" ??????????? | | ???????????????????????#### ??????????????? | | ???????????????????????????? """"""??????????????? | | ???????????????????????????? ??????????????? | | ?????????????????????????????""""""??????????????? | | ????????????????????????????? ???????????????? | | ??????????????????????????????"""????????????????? | | ?????????????????????????????? ??????????????????? | | ????????????????????????????"""Y"""??????????????? | | ????????????????????????????"""""""??????????????? | | ?????????????????????????????????????????????????? | | ?????????????????????????????????????????????????? | | ?????????????????????????????????????????????????? | | ?????????????????????????????????????????????????? | | ?????????????????????????????????????????????????? | | ?????????????????????????????????????????????????? | | ?????????????????????????????????????????????????? | | ?????????????????????????????????????????????????? | | ?????????????????????????????????????????????????? | | ?????????????????????????????????????????????????? | | ?????????????????????????????????????????????????? | | ?????????????????????????????????????????????????? | +----------------------------------------------------+ Best States ------------- Heat Dissipation 79 Energy Generation 24 Energy Capacity 325 Matter Stores 300 Matter Capacity 300 Sight Range 16 Terrain Scan Density 10 Armor Coverage 600 Weapon Shielding 66 Evasion (%) 50 Recoil Reduction 2 Item Schematics ----------------- None Robot Schematics ------------------ None Fabricated ------------ Nothing Repaired ---------- Nothing Studied --------- None Alien Tech Used ----------------- None Achievements -------------- Art Critic Civilization 2243 Construction Begets Destruction Frankenstein Heavy Suspicion I Have A Map? Link The Feds Live, Flee, And Rebuild Low-level Research Mistaken Identity Nice Directions, Buddy Challenges ------------ None Game ------ Seed CompactPhaseEdition Manual? 0 Play Time 00:42:35 Cumulative 327.6 hours Start 2025.10.24 @ 00:44:56 End 2025.10.24 @ 01:24:37 Sessions 1 Manual Loads 0 Difficulty Rogue Special Mode None Game No. 286 Rogue 286 Adventurer 0 Explorer 0 Win Type - Total 2 Types 1/1/0/0/0/0/0/0/0/0 Lore% 78 Gallery% 79 Achievement% 43 Wizard Run 0 Options --------- Layout 1 ASCII 0 Keyboard 0 Movement Numpad Keybinds 0 Fullscreen 1 Font 24/Smallcaps Map View 50x35 Zoom Use 0% Tactical HUD 1 Map Filters NONE Filters NONE Steam 1 RUN: 9eaa59d7-bc9c-44de-8265-1b903e30c851